fUST/lending_fUST_20250811
["ID","MTS","AMOUNT","RATE_DAILY","PERIOD"]
[378593139,1754920245926,-460.0,0.00019178,2]
[378593140,1754920245935,-460.0,0.00019178,2]
[378593142,1754920245945,-460.0,0.00019178,2]
[378593143,1754920245954,-654.47,0.00019178,2]
[378593144,1754920245963,-460.0,0.00019178,2]
[378593145,1754920245972,-460.0,0.00019178,2]
[378593146,1754920245981,-1017.51,0.00019178,2]
[378593147,1754920245990,-460.0,0.00019178,2]
[378593149,1754920246000,-534.00012802,0.00019178,2]
[378593150,1754920246009,-460.0,0.00019178,2]
[378593151,1754920246018,-460.0,0.00019178,2]
[378593152,1754920246028,-460.0,0.00019178,2]
[378593153,1754920246037,-460.0,0.00019178,2]
[378593154,1754920246048,-1153.7,0.00019178,2]
[378593155,1754920246057,-460.0,0.00019178,2]
[378593156,1754920246067,-176.83265118,0.00019178,2]
[378593157,1754920246076,-600.97,0.00019178,2]
[378593158,1754920246085,-460.0,0.00019178,2]
[378593159,1754920246094,-460.0,0.00019178,2]
[378593160,1754920246103,-460.0,0.00019178,2]
[378593161,1754920246113,-460.0,0.00019178,2]
[378593162,1754920246122,-460.0,0.00019178,2]
[378593163,1754920246131,-460.0,0.00019178,2]
[378593164,1754920246141,-460.0,0.00019178,2]
[378593165,1754920246150,-460.0,0.00019178,2]
[378593166,1754920246160,-1023.53,0.00019178,2]
[378593167,1754920246171,-460.0,0.00019178,2]
[378593168,1754920246181,-460.0,0.00019178,2]
[378593169,1754920246190,-699.32,0.00019178,2]
[378593170,1754920246200,-460.0,0.00019178,2]
[378593171,1754920246210,-460.0,0.00019178,2]
[378593173,1754920246219,-460.0,0.00019178,2]
[378593175,1754920246229,-632.28,0.00019178,2]
[378593176,1754920246239,-567.86,0.00019178,2]
[378593177,1754920246248,-481.24,0.00019178,2]
[378593178,1754920246258,-460.0,0.00019178,2]
[378593179,1754920246267,-460.0,0.00019178,2]
[378593180,1754920246277,-859.26,0.00019178,2]
[378593181,1754920246287,-460.0,0.00019178,2]
[378593182,1754920246296,-525.14,0.00019178,2]
[378593183,1754920246306,-460.0,0.00019178,2]
[378593184,1754920246315,-667.57,0.00019178,2]
[378593185,1754920246324,-460.0,0.00019178,2]
[378593186,1754920246333,-460.0,0.00019178,2]
[378593187,1754920246343,-460.0,0.00019178,2]
[378593188,1754920246352,-460.0,0.00019178,2]
[378593189,1754920246362,-460.0,0.00019178,2]
[378593190,1754920246371,-460.0,0.00019178,2]
[378593191,1754920246380,-748.51,0.00019178,2]
[378593192,1754920246390,-460.0,0.00019178,2]
[378593193,1754920246399,-460.0,0.00019178,2]
[378593194,1754920246409,-694.07,0.00019178,2]
[378593195,1754920246423,-460.0,0.00019178,2]
[378593196,1754920246433,-498.81,0.00019178,2]
[378593197,1754920246443,-460.0,0.00019178,2]
[378593198,1754920246452,-543.53,0.00019178,2]
[378593199,1754920246461,-461.60381842,0.00019178,2]
[378593200,1754920246471,-584.62,0.00019178,2]
[378593201,1754920246481,-460.0,0.00019178,2]
[378593202,1754920246491,-460.0,0.00019178,2]
[378593203,1754920246500,-460.0,0.00019178,2]
[378593204,1754920246510,-460.0,0.00019178,2]
[378593205,1754920246520,-479.96,0.00019178,2]
[378593206,1754920246530,-460.0,0.00019178,2]
[378593207,1754920246539,-3193.47,0.00019178,2]
[378593208,1754920246555,-460.0,0.00019178,2]
[378593209,1754920246570,-460.0,0.00019178,2]
[378593210,1754920246580,-463.60273293,0.00019178,2]
[378593211,1754920246597,-460.0,0.00019178,2]
[378593212,1754920246617,-3589.11,0.00019178,2]
[378593213,1754920246628,-460.0,0.00019178,2]
[378593214,1754920246638,-3148.71,0.00019178,2]
[378593215,1754920246648,-460.0,0.00019178,2]
[378593216,1754920246657,-460.0,0.00019178,2]
[378593217,1754920246668,-460.0,0.00019178,2]
[378593218,1754920246679,-460.0,0.00019178,2]
[378593219,1754920246688,-460.0,0.00019178,2]
[378593220,1754920246698,-460.0,0.00019178,2]
[378593221,1754920246708,-1050.86,0.00019178,2]
[378593222,1754920246718,-460.0,0.00019178,2]
[378593223,1754920246728,-460.0,0.00019178,2]
[378593224,1754920246737,-2499.24,0.00019178,2]
[378593225,1754920246747,-649.02,0.00019178,2]
[378593226,1754920246756,-747.02,0.00019178,2]
[378593227,1754920246766,-460.0,0.00019178,2]
[378593228,1754920246776,-460.0,0.00019178,2]
[378593229,1754920246786,-460.0,0.00019178,2]
[378593230,1754920246796,-460.0,0.00019178,2]
[378593231,1754920246806,-707.8,0.00019178,2]
[378593232,1754920246819,-460.0,0.00019178,2]
[378593233,1754920246829,-460.0,0.00019178,2]
[378593234,1754920246840,-356.50985516,0.00019178,2]
[378593235,1754920246850,-1153.31,0.00019178,2]
[378593236,1754920246860,-1923.79,0.00019178,2]
[378593237,1754920246870,-460.0,0.00019178,2]
[378593238,1754920246880,-812.58,0.00019178,2]
[378593239,1754920246890,-460.0,0.00019178,2]
[378593240,1754920246900,-460.0,0.00019178,2]
[378593241,1754920246910,-460.0,0.00019178,2]
[378593242,1754920246922,-460.0,0.00019178,2]
[378593243,1754920246931,-405.57055457,0.00019178,2]
[378593244,1754920246941,-460.0,0.00019178,2]
[378593245,1754920246951,-2213.59,0.00019178,2]
[378593246,1754920246961,-460.0,0.00019178,2]
[378593247,1754920246971,-460.0,0.00019178,2]
[378593248,1754920246980,-460.0,0.00019178,2]
[378593249,1754920246989,-460.0,0.00019178,2]
[378593250,1754920246999,-460.0,0.00019178,2]
[378593251,1754920247009,-460.0,0.00019178,2]
[378593252,1754920247019,-460.0,0.00019178,2]
[378593253,1754920247029,-460.0,0.00019178,2]
[378593254,1754920247039,-460.0,0.00019178,2]
[378593255,1754920247048,-460.0,0.00019178,2]
[378593256,1754920247059,-460.0,0.00019178,2]
[378593257,1754920247069,-460.0,0.00019178,2]
[378593258,1754920247079,-460.0,0.00019178,2]
[378593259,1754920247089,-806.04,0.00019178,2]
[378593260,1754920247099,-460.0,0.00019178,2]
[378593261,1754920247108,-460.0,0.00019178,2]
[378593262,1754920247118,-460.0,0.00019178,2]
[378593263,1754920247127,-460.0,0.00019178,2]
[378593264,1754920247137,-400.0,0.00019178,2]
[378593265,1754920247147,-460.0,0.00019178,2]
[378593266,1754920247156,-460.0,0.00019178,2]
[378593267,1754920247167,-460.0,0.00019178,2]
[378593268,1754920247177,-460.0,0.00019178,2]
[378593269,1754920247186,-460.0,0.00019178,2]
[378593270,1754920247196,-460.0,0.00019178,2]
[378593271,1754920247206,-789.05,0.00019178,2]
[378593272,1754920247215,-460.0,0.00019178,2]
[378593273,1754920247225,-381.27961022,0.00019178,2]
[378593274,1754920247235,-460.0,0.00019178,2]
[378593275,1754920247244,-460.0,0.00019178,2]
[378593276,1754920247253,-460.0,0.00019178,2]
[378593277,1754920247263,-460.0,0.00019178,2]
[378593279,1754920247273,-460.0,0.00019178,2]
[378593280,1754920247283,-460.0,0.00019178,2]
[378593282,1754920247292,-983.81,0.00019178,2]
[378593283,1754920247302,-6346.6226919,0.00019178,2]
[378593294,1754920248238,-500.0,0.00018768,2]
[378593295,1754920248248,-4858.0273081,0.00019178,2]
[378593296,1754920248257,-315.69651082,0.00019178,2]
[378593297,1754920248267,-1091.54,0.00019178,2]
[378593298,1754920248277,-460.0,0.00019178,2]
[378593299,1754920248286,-460.0,0.00019178,2]
[378593300,1754920248295,-460.0,0.00019178,2]
[378593301,1754920248305,-460.0,0.00019178,2]
[378593302,1754920248315,-793.03,0.00019178,2]
[378593303,1754920248325,-460.0,0.00019178,2]
[378593304,1754920248335,-460.0,0.00019178,2]
[378593305,1754920248346,-460.0,0.00019178,2]
[378593306,1754920248356,-460.0,0.00019178,2]
[378593307,1754920248365,-460.0,0.00019178,2]
[378593308,1754920248375,-460.0,0.00019178,2]
[378593309,1754920248384,-460.0,0.00019178,2]
[378593310,1754920248394,-460.0,0.00019178,2]
[378593311,1754920248403,-460.0,0.00019178,2]
[378593312,1754920248413,-497.28876133,0.00019178,2]
[378593313,1754920248424,-460.0,0.00019178,2]
[378593314,1754920248434,-904.75,0.00019178,2]
[378593315,1754920248444,-1095.03,0.00019178,2]
[378593316,1754920248454,-460.0,0.00019178,2]
[378593317,1754920248463,-2107.18,0.00019178,2]
[378593318,1754920248474,-460.0,0.00019178,2]
[378593319,1754920248484,-460.0,0.00019178,2]
[378593320,1754920248495,-460.0,0.00019178,2]
[378593321,1754920248514,-460.0,0.00019178,2]
[378593322,1754920248531,-460.0,0.00019178,2]
[378593323,1754920248541,-460.0,0.00019178,2]
[378593324,1754920248551,-460.0,0.00019178,2]
[378593325,1754920248561,-666.0,0.00019178,2]
[378593326,1754920248571,-5000.0,0.00019178,2]
[378593327,1754920248581,-2313.3117239,0.00019178,2]
[378593328,1754920248592,-150.0,0.00019178,2]
[378593329,1754920248603,-151.0,0.000192,2]
[378593330,1754920248613,-151.0,0.000192,2]
[378593331,1754920248622,-2479.46688469,0.00019221,2]
[378593332,1754920248632,-168.0,0.00019237,2]
[378593333,1754920248642,-168.0,0.00019271,2]
[378593334,1754920248652,-151.0,0.000193,2]
[378593335,1754920248662,-440.0,0.00019303,2]
[378593336,1754920248676,-3185.01068787,0.00019308,2]
[378593337,1754920248686,-1075.04094587,0.00019321,2]
[378593338,1754920248697,-1000.0,0.00019321,2]
[378593339,1754920248707,-1000.0,0.00019321,2]
[378593340,1754920248718,-1000.0,0.00019321,2]
[378593341,1754920248938,-500.0,0.00019321,2]
[378593342,1754920248948,-1000.0,0.00019321,2]
[378593343,1754920248957,-1072.28433155,0.00019321,2]
[378593344,1754920248967,-1000.0,0.00019321,2]
[378593345,1754920248978,-1000.0,0.00019321,2]
[378593346,1754920248987,-1000.0,0.00019321,2]
[378593347,1754920248998,-1000.0,0.00019321,2]
[378593348,1754920249008,-1000.0,0.00019321,2]
[378593349,1754920249018,-1000.0,0.00019321,2]
[378593350,1754920249027,-1000.0,0.00019321,2]
[378593351,1754920249037,-1000.0,0.00019321,2]
[378593352,1754920249046,-1000.0,0.00019321,2]
[378593353,1754920249057,-1000.0,0.00019321,2]
[378593354,1754920249066,-1000.0,0.00019321,2]
[378593355,1754920249076,-1000.0,0.00019321,2]
[378593356,1754920249085,-1000.0,0.00019321,2]
[378593357,1754920249095,-1000.0,0.00019321,2]
[378593358,1754920249104,-451.66015152,0.00019321,2]
[378593359,1754920249113,-500.0,0.00019321,2]
[378593360,1754920249123,-1037.49624507,0.00019321,2]
[378593361,1754920249133,-848.69065731,0.00019321,2]
[378593362,1754920249142,-500.0,0.00019321,2]
[378593363,1754920249152,-1000.0,0.00019321,2]
[378593364,1754920249162,-505.1922163,0.00019321,2]
[378593365,1754920249173,-1000.0,0.00019321,2]
[378593366,1754920249183,-1000.0,0.00019321,2]
[378593367,1754920249192,-1000.0,0.00019321,2]
[378593368,1754920249202,-209.01178275,0.00019321,2]
[378593369,1754920249212,-1000.0,0.00019321,2]
[378593370,1754920249222,-1000.0,0.00019321,2]
[378593371,1754920249231,-1000.0,0.00019321,2]
[378593372,1754920249241,-1000.0,0.00019321,2]
[378593373,1754920249251,-225.87216871,0.00019321,2]
[378593374,1754920249261,-500.0,0.00019325,2]
[378593375,1754920249270,-100000.0,0.00019329,2]
[378593376,1754920249280,-3821.87844663,0.00019339,2]
[378593377,1754920249289,-500.0,0.00019344,2]
[378593378,1754920249299,-500.0,0.00019344,2]
[378593379,1754920249308,-440.0,0.00019372,2]
[378593380,1754920249318,-168.0,0.00019388,2]
[378593381,1754920249328,-151.0,0.000194,2]
[378593382,1754920249338,-151.0,0.000194,2]
[378593383,1754920249347,-168.0,0.00019404,2]
[378593384,1754920249357,-151.0,0.00019452,2]
[378593385,1754920249367,-460.0,0.00019452,2]
[378593386,1754920249376,-460.0,0.00019452,2]
[378593387,1754920249387,-151.0,0.00019452,2]
[378593388,1754920249397,-151.0,0.00019452,2]
[378593389,1754920249406,-460.0,0.00019452,2]
[378593390,1754920249417,-460.0,0.00019452,2]
[378593391,1754920249427,-526.38517839,0.00019452,2]
[378593392,1754920249436,-460.0,0.00019452,2]
[378593393,1754920249446,-151.0,0.00019452,2]
[378593394,1754920249455,-460.0,0.00019452,2]
[378593395,1754920249464,-460.0,0.00019452,2]
[378593396,1754920249473,-460.0,0.00019452,2]
[378593397,1754920249483,-460.0,0.00019452,2]
[378593398,1754920249492,-460.0,0.00019452,2]
[378593399,1754920249502,-460.0,0.00019452,2]
[378593400,1754920249511,-581.21354039,0.00019452,2]
[378593401,1754920249520,-460.0,0.00019452,2]
[378593402,1754920249530,-460.0,0.00019452,2]
[378593403,1754920249539,-460.0,0.00019452,2]
[378593404,1754920249549,-460.0,0.00019452,2]
[378593405,1754920249558,-460.0,0.00019452,2]
[378593406,1754920249568,-162.63668174,0.00019452,2]
[378593407,1754920249577,-548.95916616,0.00019452,2]
[378593408,1754920249587,-460.0,0.00019452,2]
[378593409,1754920249601,-460.0,0.00019452,2]
[378593410,1754920249610,-914.28,0.00019452,2]
[378593411,1754920249620,-1058.46,0.00019452,2]
[378593412,1754920249629,-460.0,0.00019452,2]
[378593413,1754920249639,-460.0,0.00019452,2]
[378593414,1754920249649,-460.0,0.00019452,2]
[378593415,1754920249658,-354.71335373,0.00019452,2]
[378593416,1754920249668,-460.0,0.00019452,2]
[378593417,1754920249678,-460.0,0.00019452,2]
[378593418,1754920249688,-460.0,0.00019452,2]
[378593419,1754920249699,-460.0,0.00019452,2]
[378593420,1754920249708,-460.0,0.00019452,2]
[378593421,1754920249718,-620.37,0.00019452,2]
[378593422,1754920249728,-460.0,0.00019452,2]
[378593423,1754920249737,-468.86349631,0.00019452,2]
[378593424,1754920249747,-460.0,0.00019452,2]
[378593425,1754920249756,-460.0,0.00019452,2]
[378593426,1754920249766,-460.0,0.00019452,2]
[378593427,1754920249776,-460.0,0.00019452,2]
[378593428,1754920249786,-460.0,0.00019452,2]
[378593429,1754920249795,-460.0,0.00019452,2]
[378593430,1754920249804,-460.0,0.00019452,2]
[378593431,1754920249814,-460.0,0.00019452,2]
[378593432,1754920249824,-460.0,0.00019452,2]
[378593433,1754920249833,-713.8,0.00019452,2]
[378593434,1754920249843,-460.0,0.00019452,2]
[378593435,1754920249853,-460.0,0.00019452,2]
[378593436,1754920249863,-561.8572985,0.00019452,2]
[378593437,1754920249873,-460.0,0.00019452,2]
[378593438,1754920249883,-831.94,0.00019452,2]
[378593439,1754920249894,-460.0,0.00019452,2]
[378593440,1754920249903,-460.0,0.00019452,2]
[378593441,1754920249912,-606.05,0.00019452,2]
[378593442,1754920249924,-582.37891375,0.00019452,2]
[378593443,1754920249933,-460.0,0.00019452,2]
[378593444,1754920249943,-712.91,0.00019452,2]
[378593445,1754920249952,-465.67917143,0.00019452,2]
[378593446,1754920249961,-460.0,0.00019452,2]
[378593447,1754920249971,-460.0,0.00019452,2]
[378593448,1754920249982,-460.0,0.00019452,2]
[378593449,1754920249995,-460.0,0.00019452,2]
[378593450,1754920250004,-754.71,0.00019452,2]
[378593451,1754920250014,-460.0,0.00019452,2]
[378593452,1754920250023,-554.47,0.00019452,2]
[378593453,1754920250032,-191.68958568,0.00019452,2]
[378593454,1754920250042,-460.0,0.00019452,2]
[378593455,1754920250051,-460.0,0.00019452,2]
[378593456,1754920250061,-200.15587209,0.00019452,2]
[378593457,1754920250071,-1153.75,0.00019452,2]
[378593458,1754920250080,-460.0,0.00019452,2]
[378593459,1754920250090,-460.0,0.00019452,2]
[378593460,1754920250099,-582.38,0.00019452,2]
[378593461,1754920250108,-489.11,0.00019452,2]
[378593462,1754920250118,-460.0,0.00019452,2]
[378593463,1754920250127,-460.0,0.00019452,2]
[378593464,1754920250136,-460.0,0.00019452,2]
[378593465,1754920250146,-460.0,0.00019452,2]
[378593466,1754920250155,-460.0,0.00019452,2]
[378593467,1754920250165,-1297.88,0.00019452,2]
[378593468,1754920250176,-460.0,0.00019452,2]
[378593469,1754920250187,-698.19,0.00019452,2]
[378593470,1754920250196,-460.0,0.00019452,2]
[378593471,1754920250206,-545.49,0.00019452,2]
[378593472,1754920250215,-460.0,0.00019452,2]
[378593473,1754920250225,-460.0,0.00019452,2]
[378593474,1754920250234,-460.0,0.00019452,2]
[378593475,1754920250243,-460.0,0.00019452,2]
[378593476,1754920250252,-682.49,0.00019452,2]
[378593477,1754920250262,-616.38,0.00019452,2]
[378593478,1754920250271,-460.0,0.00019452,2]
[378593479,1754920250280,-460.0,0.00019452,2]
[378593480,1754920250290,-460.0,0.00019452,2]
[378593481,1754920250300,-680.65,0.00019452,2]
[378593482,1754920250309,-460.0,0.00019452,2]
[378593483,1754920250318,-460.0,0.00019452,2]
[378593484,1754920250327,-460.0,0.00019452,2]
[378593485,1754920250337,-460.0,0.00019452,2]
[378593486,1754920250346,-211.51034252,0.00019452,2]
[378593487,1754920250355,-724.01,0.00019452,2]
[378593488,1754920250365,-460.0,0.00019452,2]
[378593489,1754920250375,-460.0,0.00019452,2]
[378593490,1754920250386,-603.71,0.00019452,2]
[378593491,1754920250398,-460.0,0.00019452,2]
[378593492,1754920250408,-460.0,0.00019452,2]
[378593493,1754920250419,-460.0,0.00019452,2]
[378593494,1754920250428,-466.77251127,0.00019452,2]
[378593495,1754920250437,-460.50222151,0.00019452,2]
[378593496,1754920250447,-1000.0,0.00019452,2]
[378593497,1754920250456,-460.0,0.00019452,2]
[378593498,1754920250466,-1039.54,0.00019452,2]
[378593499,1754920250475,-537.66,0.00019452,2]
[378593500,1754920250484,-321.5025811,0.00019452,2]
[378593501,1754920250494,-795.7,0.00019452,2]
[378593502,1754920250503,-460.0,0.00019452,2]
[378593503,1754920250513,-460.0,0.00019452,2]
[378593504,1754920250522,-460.0,0.00019452,2]
[378593505,1754920250531,-460.0,0.00019452,2]
[378593506,1754920250540,-460.0,0.00019452,2]
[378593507,1754920250550,-522.93,0.00019452,2]
[378593508,1754920250559,-460.0,0.00019452,2]
[378593509,1754920250569,-460.0,0.00019452,2]
[378593510,1754920250579,-460.0,0.00019452,2]
[378593511,1754920250588,-460.0,0.00019452,2]
[378593512,1754920250601,-794.23,0.00019452,2]
[378593513,1754920250610,-188.29811582,0.00019452,2]
[378593514,1754920250620,-248.13144482,0.00019452,2]
[378593515,1754920250629,-460.0,0.00019452,2]
[378593516,1754920250639,-460.0,0.00019452,2]
[378593517,1754920250648,-460.0,0.00019452,2]
[378593518,1754920250658,-799.99,0.00019452,2]
[378593519,1754920250670,-460.0,0.00019452,2]
[378593520,1754920250680,-460.0,0.00019452,2]
[378593521,1754920250690,-460.0,0.00019452,2]
[378593522,1754920250699,-314.63081393,0.00019452,2]
[378593523,1754920250709,-460.0,0.00019452,2]
[378593524,1754920250718,-460.0,0.00019452,2]
[378593525,1754920250728,-460.0,0.00019452,2]
[378593526,1754920250737,-460.0,0.00019452,2]
[378593527,1754920250746,-471.51,0.00019452,2]
[378593528,1754920250755,-551.49,0.00019452,2]
[378593529,1754920250765,-574.35,0.00019452,2]
[378593530,1754920250775,-460.0,0.00019452,2]
[378593531,1754920250784,-703.79,0.00019452,2]
[378593532,1754920250793,-460.0,0.00019452,2]
[378593533,1754920250802,-460.0,0.00019452,2]
[378593534,1754920250811,-460.0,0.00019452,2]
[378593535,1754920250821,-493.12,0.00019452,2]
[378593536,1754920250831,-619.62,0.00019452,2]
[378593537,1754920250840,-1416.79,0.00019452,2]
[378593538,1754920250849,-460.0,0.00019452,2]
[378593539,1754920250859,-460.0,0.00019452,2]
[378593540,1754920250869,-460.0,0.00019452,2]
[378593541,1754920250878,-460.0,0.00019452,2]
[378593542,1754920250888,-460.0,0.00019452,2]
[378593543,1754920250898,-2721.89,0.00019452,2]
[378593544,1754920250908,-4958.4,0.00019452,2]
[378593545,1754920250918,-504.73,0.00019452,2]
[378593546,1754920250928,-460.0,0.00019452,2]
[378593547,1754920250937,-460.0,0.00019452,2]
[378593548,1754920250946,-460.0,0.00019452,2]
[378593549,1754920250957,-460.0,0.00019452,2]
[378593550,1754920250966,-460.0,0.00019452,2]
[378593551,1754920250976,-460.0,0.00019452,2]
[378593552,1754920250985,-723.37,0.00019452,2]
[378593553,1754920250996,-460.0,0.00019452,2]
[378593554,1754920251005,-577.43,0.00019452,2]
[378593555,1754920251014,-460.0,0.00019452,2]
[378593556,1754920251024,-300.30860168,0.00019452,2]
[378593557,1754920251033,-460.0,0.00019452,2]
[378593558,1754920251043,-460.0,0.00019452,2]
[378593559,1754920251056,-460.0,0.00019452,2]
[378593560,1754920251075,-460.0,0.00019452,2]
[378593561,1754920251094,-460.0,0.00019452,2]
[378593562,1754920251105,-460.0,0.00019452,2]
[378593563,1754920251115,-596.14,0.00019452,2]
[378593564,1754920251125,-460.0,0.00019452,2]
[378593565,1754920251134,-460.0,0.00019452,2]
[378593566,1754920251143,-460.0,0.00019452,2]
[378593567,1754920251152,-460.0,0.00019452,2]
[378593568,1754920251162,-460.0,0.00019452,2]
[378593569,1754920251173,-460.0,0.00019452,2]
[378593570,1754920251183,-460.0,0.00019452,2]
[378593571,1754920251192,-460.0,0.00019452,2]
[378593572,1754920251201,-769.21,0.00019452,2]
[378593573,1754920251211,-1767.92,0.00019452,2]
[378593574,1754920251220,-605.71,0.00019452,2]
[378593575,1754920251229,-460.0,0.00019452,2]
[378593576,1754920251298,-460.0,0.00019452,2]
[378593577,1754920251308,-516.87637035,0.00019452,2]
[378593578,1754920251317,-460.0,0.00019452,2]
[378593579,1754920251327,-1432.7,0.00019452,2]
[378593580,1754920251336,-460.0,0.00019452,2]
[378593581,1754920251346,-163.20118164,0.00019452,2]
[378593582,1754920251356,-677.11,0.00019452,2]
[378593583,1754920251365,-444.56969121,0.00019452,2]
[378593584,1754920251374,-460.0,0.00019452,2]
[378593585,1754920251383,-1419.4,0.00019452,2]
[378593586,1754920251392,-460.0,0.00019452,2]
[378593587,1754920251402,-460.0,0.00019452,2]
[378593588,1754920251411,-4628.27,0.00019452,2]
[378593589,1754920251422,-460.0,0.00019452,2]
[378593590,1754920251431,-460.0,0.00019452,2]
[378593591,1754920251442,-460.0,0.00019452,2]
[378593592,1754920251451,-460.0,0.00019452,2]
[378593593,1754920251460,-460.0,0.00019452,2]
[378593594,1754920251470,-460.0,0.00019452,2]
[378593595,1754920251480,-460.0,0.00019452,2]
[378593596,1754920251489,-461.27211757,0.00019452,2]
[378593598,1754920251499,-800.64,0.00019452,2]
[378593599,1754920251509,-460.0,0.00019452,2]
[378593600,1754920251518,-460.0,0.00019452,2]
[378593601,1754920251527,-604.56,0.00019452,2]
[378593602,1754920251536,-460.0,0.00019452,2]
[378593603,1754920251546,-566.75,0.00019452,2]
[378593604,1754920251555,-460.0,0.00019452,2]
[378593605,1754920251564,-460.0,0.00019452,2]
[378593606,1754920251573,-460.0,0.00019452,2]
[378593607,1754920251583,-460.0,0.00019452,2]
[378593608,1754920251594,-460.0,0.00019452,2]
[378593609,1754920251612,-460.0,0.00019452,2]
[378593610,1754920251622,-722.6,0.00019452,2]
[378593611,1754920251632,-460.0,0.00019452,2]
[378593612,1754920251641,-460.0,0.00019452,2]
[378593613,1754920251650,-460.0,0.00019452,2]
[378593614,1754920251659,-460.0,0.00019452,2]
[378593615,1754920251670,-460.0,0.00019452,2]
[378593616,1754920251679,-460.0,0.00019452,2]
[378593617,1754920251689,-1315.14,0.00019452,2]
[378593618,1754920251698,-1144.55,0.00019452,2]
[378593619,1754920251707,-460.0,0.00019452,2]
[378593620,1754920251716,-556.38,0.00019452,2]
[378593621,1754920251725,-460.0,0.00019452,2]
[378593622,1754920251735,-460.0,0.00019452,2]
[378593623,1754920251745,-460.0,0.00019452,2]
[378593624,1754920251754,-460.0,0.00019452,2]
[378593625,1754920251763,-460.0,0.00019452,2]
[378593626,1754920251773,-460.0,0.00019452,2]
[378593627,1754920251782,-460.0,0.00019452,2]
[378593628,1754920251791,-460.0,0.00019452,2]
[378593629,1754920251800,-460.0,0.00019452,2]
[378593630,1754920251809,-2361.39,0.00019452,2]
[378593631,1754920251818,-460.0,0.00019452,2]
[378593632,1754920251827,-460.0,0.00019452,2]
[378593633,1754920251837,-1312.88,0.00019452,2]
[378593634,1754920251846,-465.47586545,0.00019452,2]
[378593635,1754920251855,-460.0,0.00019452,2]
[378593636,1754920251864,-460.0,0.00019452,2]
[378593637,1754920251874,-464.08472622,0.00019452,2]
[378593638,1754920251883,-460.0,0.00019452,2]
[378593639,1754920251893,-460.0,0.00019452,2]
[378593640,1754920251902,-460.0,0.00019452,2]
[378593641,1754920251911,-460.0,0.00019452,2]
[378593642,1754920251921,-460.0,0.00019452,2]
[378593643,1754920251930,-4434.41,0.00019452,2]
[378593644,1754920251940,-460.0,0.00019452,2]
[378593645,1754920251949,-1178.61,0.00019452,2]
[378593646,1754920251958,-1080.56,0.00019452,2]
[378593647,1754920251968,-460.0,0.00019452,2]
[378593648,1754920251977,-695.41,0.00019452,2]
[378593649,1754920251986,-460.0,0.00019452,2]
[378593650,1754920251995,-460.0,0.00019452,2]
[378593651,1754920252005,-460.0,0.00019452,2]
[378593652,1754920252014,-460.0,0.00019452,2]
[378593653,1754920252023,-460.0,0.00019452,2]
[378593654,1754920252033,-1734.73,0.00019452,2]
[378593655,1754920252042,-851.18,0.00019452,2]